bitfinex/quotes_ETHUSD_20251130
["timestamp","ask_amount","ask_price","bid_price","bid_amount"]
[1764477170041,3.33166749,3001.5,3001.1,0.6742]
[1764477170239,0.33593433,3001.3,3001.2,0.4924]
[1764477170667,0.33593433,3001.3,3001.2,0.972]
[1764477171241,6.66333498,3001.5,3001.2,0.972]
[1764477171562,6.66333498,3001.5,3001.2,0.4924]
[1764477172467,6.665113,3001.6,3001.2,0.4924]
[1764477172656,7.140913,3001.6,3001.2,0.4924]
[1764477173668,7.140913,3001.6,3001.2,0.9456]
[1764477173859,6.665113,3001.6,3001.2,0.9456]
[1764477174055,6.665113,3001.6,3001.2,0.4924]
[1764477174262,6.665113,3001.6,3001.3,0.4532]
[1764477174863,7.4004043,3001.6,3001.3,0.4532]
[1764477175066,7.4004043,3001.6,3001.1,0.6478]
[1764477175268,0.33593433,3001.4,3001.2,0.4532]
[1764477175437,3.3335565,3001.6,3001.5,0.4559]
[1764477176039,3.4160565,3001.6,3001.3,0.4532]
[1764477177039,6.747613,3001.6,3001.3,0.4532]
[1764477177250,7.4435743,3001.6,3001.3,0.4532]
[1764477178454,4.1120178,3001.6,3001.3,0.4532]
[1764477180554,4.44795213,3001.6,3001.3,0.4532]
[1764477181156,4.0295178,3001.6,3001.5,0.4559]
[1764477181749,0.6979613,3001.6,3001.5,0.4559]
[1764477182069,0.6979613,3001.6,3001.5,0.9091]
[1764477182269,4.0295178,3001.6,3001.5,0.9091]
[1764477183571,4.2395178,3001.6,3001.5,0.4559]
[1764477183770,0.002,3001.6,3001.5,0.9091]
[1764477183976,0.212,3001.6,3001.5,0.9091]
[1764477185441,3.5435565,3001.6,3001.5,0.9091]
[1764477186576,0.212,3001.6,3001.5,0.9091]
[1764477189596,3.5435565,3001.6,3001.5,0.9091]
[1764477190094,0.002,3001.6,3001.5,0.9091]
[1764477197190,0.33793433,3001.6,3001.5,0.9091]
[1764477197400,0.002,3001.6,3001.5,0.9091]
[1764477205564,0.002,3001.6,3001.5,0.9476]
[1764477205767,0.002,3001.6,3001.5,1.40884698]
[1764477205983,0.002,3001.6,3001.5,0.98091667]
[1764477206182,0.002,3001.6,3001.5,0.9476]
[1764477210099,0.002,3001.6,3001.5,4.27926749]
[1764477210901,0.002,3001.6,3001.5,0.9476]
[1764477211482,0.002,3001.6,3001.5,4.27926749]
[1764477211783,0.002,3001.6,3001.5,5.04371391]
[1764477213600,0.002,3001.6,3001.5,1.71204642]
[1764477213769,0.002,3001.6,3001.5,5.04371391]
[1764477216471,0.002,3001.6,3001.5,1.71204642]
[1764477216879,0.002,3001.6,3001.5,1.74536309]
[1764477217482,0.002,3001.6,3001.5,5.07703058]
[1764477219506,0.002,3001.6,3001.5,5.81501706]
[1764477219705,0.002,3001.6,3001.5,6.02501706]
[1764477219871,0.002,3001.6,3001.5,6.1584725]
[1764477222713,0.002,3001.6,3001.5,9.3970762]
[1764477222969,0.002,3001.7,3001.6,0.405504]
[1764477223196,0.002,3001.7,3001.6,2.98737151]
[1764477223496,0.002,3001.7,3001.6,6.45235718]
[1764477223690,0.002,3001.7,3001.6,6.84546881]
[1764477223905,0.002,3001.7,3001.6,7.17795129]
[1764477228811,0.002,3001.7,3001.6,6.84546881]
[1764477229014,0.002,3001.7,3001.6,7.17795129]
[1764477229386,0.002,3001.7,3001.6,6.84546881]
[1764477229580,0.002,3001.7,3001.6,7.17795129]
[1764477229787,0.002,3001.7,3001.6,6.98244729]
[1764477229981,0.002,3001.7,3001.6,7.38795129]
[1764477230187,0.002,3001.7,3001.6,7.05546881]
[1764477231888,0.002,3001.7,3001.6,1.4063142]
[1764477232118,0.002,3001.7,3001.5,4.09611018]
[1764477232119,0.5621,3001.7,3001.5,3.33166376]
[1764477232414,0.2986,3001.7,3001.5,3.33166376]
[1764477232790,0.2986,3001.7,3001.5,3.36498043]
[1764477232990,0.2986,3001.7,3001.5,6.69664792]
[1764477233309,0.2986,3001.7,3001.5,6.66333125]
[1764477235019,0.2986,3001.7,3001.6,0.03331556]
[1764477236833,0.2986,3001.7,3001.6,3.36487206]
[1764477237007,0.002,3001.7,3001.6,4.0688723]
[1764477237524,0.002,3001.7,3001.6,4.89165478]
[1764477237730,0.002,3001.7,3001.6,5.35295478]
[1764477239220,0.002,3001.7,3001.6,5.0204723]
[1764477243501,0.002,3001.7,3001.6,4.5591723]
[1764477243706,0.002,3001.7,3001.6,3.85517206]
[1764477245734,0.002,3001.7,3001.6,4.31647206]
[1764477249611,0.002,3001.7,3001.6,3.85517206]
[1764477249842,0.002,3001.7,3001.6,3.36487206]
[1764477250042,0.002,3001.7,3001.6,3.3315565]
[1764477250411,0.002,3001.7,3001.6,3.8218565]
[1764477256180,0.1021,3001.7,3001.6,3.36487206]
[1764477256619,0.1021,3001.7,3001.6,3.3315565]
[1764477257560,0.002,3001.7,3001.6,3.3315565]
[1764477258247,0.002,3001.7,3001.5,6.66433125]
[1764477258427,0.002,3001.7,3001.5,7.7351014]
[1764477258818,0.002,3001.7,3001.5,8.1964014]
[1764477261245,0.1037,3001.6,3001.5,3.33266376]
[1764477261566,0.1037,3001.6,3001.5,0.001]
[1764477261734,0.1037,3001.6,3001.5,3.36598416]
[1764477261735,0.5549,3001.6,3001.5,3.36598416]
[1764477262551,0.1037,3001.6,3001.5,3.36598416]
[1764477264041,0.002,3001.7,3001.5,11.59663132]
[1764477264243,0.002,3001.7,3001.6,0.9696]
[1764477264550,0.002,3001.7,3001.6,1.375104]
[1764477265364,0.002,3001.7,3001.6,1.40841956]
[1764477265941,0.002,3001.7,3001.6,5.07245854]
[1764477266167,0.002,3001.7,3001.6,6.41841041]
[1764477266669,0.002,3001.7,3001.6,6.75089289]
[1764477266874,0.002,3001.7,3001.6,6.41841041]
[1764477267264,0.002,3001.7,3001.6,6.75089289]
[1764477267678,0.002,3001.7,3001.6,6.41841041]
[1764477268645,0.002,3001.7,3001.6,6.45172597]
[1764477268850,0.002,3001.7,3001.6,6.41841041]
[1764477271573,0.002,3001.7,3001.6,5.93441041]
[1764477272173,0.0867,3001.7,3001.6,5.44881041]
[1764477272682,0.5708,3001.7,3001.6,3.7370605]
[1764477274485,0.0867,3001.7,3001.6,3.7370605]
[1764477275158,0.002,3001.7,3001.6,4.25597606]
[1764477275357,0.002,3001.7,3001.6,4.73997606]
[1764477275769,0.002,3001.7,3001.6,5.20591532]
[1764477276066,0.002,3001.7,3001.6,6.40463376]
[1764477279153,0.002,3001.7,3001.6,9.64323746]
[1764477279458,0.002,3001.7,3001.6,9.6099219]
[1764477283862,0.002,3001.7,3001.6,9.27743942]
[1764477284692,0.002,3001.7,3001.6,9.27731058]
[1764477285189,0.002,3001.7,3001.6,9.60979306]
[1764477288094,0.002,3001.7,3001.6,9.27731058]
[1764477288466,0.002,3001.7,3001.6,9.60979306]
[1764477291998,0.002,3001.7,3001.6,5.75386142]
[1764477292172,0.002,3001.7,3001.6,6.28517698]
[1764477295770,0.002,3001.7,3001.6,5.78717698]
[1764477296673,0.002,3001.7,3001.6,5.75386142]
[1764477297904,0.002,3001.7,3001.6,5.42137894]
[1764477298104,0.002,3001.7,3001.6,5.75386142]
[1764477298705,0.002,3001.7,3001.6,5.78717698]
[1764477299615,0.002,3001.7,3001.6,6.28517698]
[1764477300812,0.002,3001.7,3001.6,5.78717698]
[1764477301507,0.002,3001.7,3001.6,5.4546945]
[1764477302510,0.002,3001.7,3001.6,5.78717698]
[1764477302886,0.002,3001.7,3001.6,6.28517698]
[1764477303217,0.002,3001.7,3001.6,9.52365184]
[1764477303382,0.002,3001.7,3001.6,9.49033628]
[1764477303578,0.002,3001.7,3001.6,9.96913628]
[1764477310416,0.002,3001.7,3001.6,9.6366538]
[1764477310785,0.002,3001.7,3001.6,9.96913628]
[1764477311115,0.002,3001.7,3001.6,9.6366538]
[1764477311316,0.002,3001.7,3001.6,9.96913628]
[1764477313991,0.002,3001.7,3001.6,9.47113628]
[1764477314197,0.002,3001.7,3001.6,9.1386538]
[1764477314386,0.002,3001.7,3001.6,5.90017894]
[1764477316785,0.002,3001.7,3001.6,5.41457894]
[1764477318889,0.556,3001.7,3001.5,3.33260766]
[1764477319109,0.0047,3001.6,3001.5,3.54260766]
[1764477319309,0.0047,3001.6,3001.5,3.94811166]
[1764477319507,0.4815,3001.6,3001.5,4.72398043]
[1764477319990,0.0047,3001.6,3001.5,4.72398043]
[1764477321890,0.4954,3001.6,3001.5,4.72398043]
[1764477322112,0.4954,3001.6,3001.5,3.94811166]
[1764477322914,0.0047,3001.6,3001.5,3.94811166]
[1764477324320,0.4833,3001.6,3001.5,3.94811166]
[1764477324686,0.0047,3001.6,3001.5,3.94811166]
[1764477324890,0.0047,3001.6,3001.5,3.98142833]
[1764477325120,0.0047,3001.6,3001.5,4.78040877]
[1764477325597,0.0047,3001.6,3001.5,4.7470921]
[1764477325802,0.002,3001.7,3001.6,0.405504]
[1764477326015,0.002,3001.7,3001.6,1.371104]
[1764477326319,0.002,3001.7,3001.6,4.7026605]
[1764477326521,0.002,3001.7,3001.6,6.66425293]
[1764477328023,0.002,3001.7,3001.6,6.19775293]
[1764477328218,0.002,3001.7,3001.6,6.23106849]
[1764477328723,0.002,3001.7,3001.6,6.71166849]
[1764477328920,0.002,3001.7,3001.6,6.67835293]
[1764477331924,0.0926,3001.7,3001.6,4.55014298]
[1764477332221,0.0926,3001.7,3001.6,4.58345854]
[1764477332425,0.0926,3001.7,3001.6,4.2176605]
[1764477332631,0.0926,3001.7,3001.6,4.55014298]
[1764477334423,0.0926,3001.7,3001.6,0.4806]
[1764477334424,0.5683,3001.7,3001.6,0.4806]
[1764477334815,0.5683,3001.7,3001.6,3.8121565]
[1764477335422,0.5683,3001.7,3001.6,4.7777565]
[1764477335423,0.002,3001.7,3001.6,4.7777565]
[1764477335595,0.002,3001.7,3001.6,5.96696161]
[1764477335800,0.002,3001.7,3001.6,5.50046161]
[1764477336524,0.002,3001.7,3001.6,4.34457206]
[1764477336732,0.002,3001.7,3001.6,3.84547206]
[1764477337511,0.0926,3001.7,3001.6,4.17795454]
[1764477341735,0.0926,3001.7,3001.6,3.84547206]
[1764477342037,0.0926,3001.7,3001.6,4.17795454]
[1764477343634,0.0926,3001.7,3001.6,3.84547206]
[1764477344030,0.002,3001.7,3001.6,3.84547206]
[1764477345507,0.0964,3001.7,3001.6,3.84547206]
[1764477346531,0.5674,3001.7,3001.6,3.8121565]
[1764477348137,0.0964,3001.7,3001.6,3.8121565]
[1764477348640,0.5674,3001.7,3001.6,3.8121565]
[1764477350243,0.5674,3001.7,3001.6,3.8121565]
[1764477351343,0.5674,3001.7,3001.6,0.4806]
[1764477351732,0.5674,3001.7,3001.6,3.8121565]
[1764477353139,0.5674,3001.7,3001.6,3.3315565]
[1764477361541,0.0964,3001.7,3001.6,3.36487206]
[1764477361942,0.0964,3001.7,3001.6,3.3315565]
[1764477362143,0.0964,3001.7,3001.6,3.36487206]
[1764477362542,0.002,3001.7,3001.6,7.07778659]
[1764477362884,0.002,3001.7,3001.6,9.39789251]
[1764477363061,0.002,3001.7,3001.6,6.65487798]
[1764477363234,0.002,3001.7,3001.6,6.68819354]
[1764477363630,0.002,3001.7,3001.6,6.35571106]
[1764477363850,0.002,3001.7,3001.6,6.68819354]
[1764477364040,0.002,3001.7,3001.6,6.65487798]
[1764477365959,0.002,3001.7,3001.6,6.3223955]
[1764477366164,0.002,3001.7,3001.6,6.35571106]
[1764477369266,0.002,3001.7,3001.6,6.68819354]
[1764477369467,0.002,3001.7,3001.6,6.65487798]
[1764477369669,0.002,3001.7,3001.6,6.3223955]
[1764477369839,0.002,3001.7,3001.6,6.35571106]
[1764477371084,0.002,3001.7,3001.6,6.68819354]
[1764477371369,0.002,3001.7,3001.6,6.65487798]
[1764477376080,0.002,3001.7,3001.6,6.3223955]
[1764477376256,0.002,3001.7,3001.6,6.68819354]
[1764477376456,0.002,3001.7,3001.6,6.65487798]
[1764477377185,0.2627,3001.7,3001.6,3.8276565]
[1764477377372,0.7538,3001.7,3001.6,3.3315565]
[1764477378761,0.7538,3001.7,3001.6,3.36487206]
[1764477381477,0.2627,3001.7,3001.6,3.36487206]
[1764477381686,0.2627,3001.7,3001.6,3.3315565]
[1764477381870,0.0692,3001.7,3001.6,3.36487206]
[1764477384398,0.0692,3001.7,3001.6,3.3315565]
[1764477385418,0.0692,3001.7,3001.6,3.36487206]
[1764477386676,0.002,3001.7,3001.6,4.55665854]
[1764477386886,0.002,3001.7,3001.6,4.22417606]
[1764477387195,0.002,3001.7,3001.6,6.48917174]
[1764477387394,0.002,3001.7,3001.6,6.82165422]
[1764477387598,0.002,3001.7,3001.6,6.78833866]
[1764477391401,0.002,3001.7,3001.6,6.45585618]
[1764477391709,0.002,3001.7,3001.6,6.82165422]
[1764477391877,0.002,3001.7,3001.6,6.78833866]
[1764477393977,0.002,3001.7,3001.6,5.84653866]
[1764477394322,0.5624,3001.7,3001.5,0.001]
[1764477394621,0.0046,3001.6,3001.5,0.001]
[1764477394977,0.4703,3001.6,3001.5,0.03431667]
[1764477395323,0.4703,3001.6,3001.5,0.001]
[1764477395531,0.4703,3001.6,3001.5,3.33266749]
[1764477397383,0.4703,3001.6,3001.5,0.001]
[1764477398530,3.8018565,3001.6,3001.5,0.001]
[1764477398827,4.83929822,3001.6,3001.5,0.001]
[1764477399211,5.04929822,3001.6,3001.5,0.001]
[1764477412617,5.05129822,3001.6,3001.5,0.001]
[1764477413227,5.38723255,3001.6,3001.5,0.001]
[1764477413600,5.77689233,3001.6,3001.5,0.001]
[1764477413997,6.11282666,3001.6,3001.5,0.001]
[1764477414398,6.21201694,3001.6,3001.5,0.001]
[1764477415027,6.11282666,3001.6,3001.5,0.001]
[1764477420408,6.21201694,3001.6,3001.5,0.001]
[1764477422131,5.76759233,3001.6,3001.5,0.001]
[1764477422331,5.97759233,3001.6,3001.5,0.001]
[1764477423409,5.52119233,3001.6,3001.5,0.001]
[1764477423606,4.58559822,3001.6,3001.5,0.001]
[1764477423806,5.25199822,3001.6,3001.5,0.001]
[1764477424105,5.97759233,3001.6,3001.5,0.001]
[1764477433240,6.31352666,3001.6,3001.5,0.001]
[1764477434133,5.97759233,3001.6,3001.5,0.001]
[1764477434705,5.52119233,3001.6,3001.5,0.001]
[1764477434910,6.00799233,3001.6,3001.5,0.001]
[1764477435331,6.08089233,3001.6,3001.5,0.001]
[1764477437342,6.51601694,3001.6,3001.5,0.001]
[1764477437738,6.41682666,3001.6,3001.5,0.001]
[1764477439942,0.002,3001.6,3001.5,0.9498]
[1764477463034,0.002,3001.6,3001.5,0.4748]
[1764477463351,0.002,3001.6,3001.5,0.9511]
[1764477465868,0.002,3001.6,3001.5,0.4748]
[1764477469139,0.002,3001.6,3001.5,0.001]
[1764477469666,0.002,3001.6,3001.5,0.4566]
[1764477469866,0.002,3001.6,3001.5,0.9329]
[1764477472373,0.002,3001.6,3001.5,1.35937286]
[1764477472549,0.002,3001.6,3001.5,0.9329]
[1764477478876,0.002,3001.6,3001.5,4.26456749]
[1764477479252,0.002,3001.6,3001.5,0.9329]
[1764477480274,0.002,3001.6,3001.5,4.26456749]
[1764477482368,0.00066736,3001.6,3001.5,4.26456749]
[1764477482568,0.00066736,3001.6,3001.5,5.04924235]
[1764477483366,0.00066736,3001.6,3001.5,5.08255902]
[1764477485082,0.00066736,3001.6,3001.5,5.8205455]
[1764477485986,0.00066736,3001.6,3001.5,5.48806302]
[1764477486580,0.00066736,3001.6,3001.5,5.45474635]
[1764477487685,0.00066736,3001.6,3001.5,5.48806302]
[1764477488681,0.00066736,3001.6,3001.5,5.8205455]
[1764477489789,0.00066736,3001.6,3001.5,5.48806302]
[1764477490293,0.00066736,3001.6,3001.5,5.8205455]
[1764477490786,0.00066736,3001.6,3001.5,5.95400094]
[1764477491685,0.00066736,3001.6,3001.5,9.19398818]
[1764477491888,0.00066736,3001.6,3001.5,9.16067151]
[1764477492090,0.00066736,3001.6,3001.5,8.82818903]
[1764477492295,0.00066736,3001.6,3001.5,9.16067151]
[1764477500185,0.00066736,3001.6,3001.5,8.82818903]
[1764477500375,0.00066736,3001.6,3001.5,9.16067151]
[1764477501177,0.00066736,3001.6,3001.5,8.82818903]
[1764477501376,0.00066736,3001.6,3001.5,9.16067151]
[1764477501805,0.00066736,3001.6,3001.5,12.39693473]
[1764477504378,0.00066736,3001.6,3001.5,12.06445225]
[1764477504581,0.00066736,3001.6,3001.5,12.39693473]
[1764477504877,0.00066736,3001.6,3001.5,12.06445225]
[1764477505780,0.00066736,3001.6,3001.5,12.39693473]
[1764477509598,0.00066736,3001.6,3001.5,12.06445225]
[1764477510392,0.00066736,3001.6,3001.5,8.82632702]
[1764477511312,0.00066736,3001.6,3001.5,9.1588095]
[1764477511706,0.00066736,3001.6,3001.5,8.82632702]
[1764477512204,0.00066736,3001.6,3001.5,9.1588095]
[1764477512813,0.00066736,3001.6,3001.5,12.39693473]
[1764477514685,0.00066736,3001.6,3001.5,12.06445225]
[1764477514886,0.00066736,3001.6,3001.5,12.39693473]
[1764477518605,0.00066736,3001.6,3001.5,12.06445225]
[1764477518807,0.00066736,3001.6,3001.5,12.39693473]
[1764477519914,0.00066736,3001.6,3001.5,9.1588095]
[1764477520918,0.00066736,3001.6,3001.5,8.82632702]
[1764477524715,0.00066736,3001.6,3001.5,13.12082884]
[1764477525501,0.002,3001.7,3001.6,1.13109811]
[1764477525714,0.002,3001.7,3001.6,4.78393315]
[1764477526222,0.002,3001.7,3001.6,6.71597115]
[1764477526519,0.002,3001.7,3001.6,6.68265559]
[1764477527220,0.002,3001.7,3001.6,6.68223565]
[1764477528605,0.002,3001.7,3001.6,13.2510583]
[1764477529912,0.002,3001.7,3001.6,12.91857582]
[1764477530222,0.002,3001.7,3001.6,13.2510583]
[1764477535029,0.002,3001.7,3001.6,12.91857582]
[1764477535328,0.002,3001.7,3001.6,11.45286897]
[1764477535927,0.002,3001.7,3001.6,11.12038649]
[1764477536227,0.002,3001.7,3001.6,11.45286897]
[1764477537227,0.002,3001.7,3001.6,11.12038649]
[1764477537400,0.002,3001.7,3001.6,11.45286897]
[1764477545207,0.002,3001.7,3001.6,13.2510583]
[1764477548215,0.002,3001.7,3001.6,12.91857582]
[1764477548513,0.002,3001.7,3001.6,13.2510583]
[1764477549516,0.002,3002.0,3001.6,17.78349949]
[1764477549716,0.002,3002.0,3001.9,5.18864674]
[1764477549915,0.002,3002.0,3001.9,5.69655897]
[1764477550128,0.002,3002.0,3001.9,5.82996856]
[1764477550523,0.002,3002.0,3001.9,9.16119211]
[1764477550729,0.002,3002.0,3001.9,8.7953974]
[1764477550943,0.002,3002.0,3001.9,10.15834063]
[1764477554645,0.002,3002.0,3001.9,9.68374063]
[1764477555146,0.002,3002.0,3001.9,10.15834063]
[1764477560329,0.002,3002.0,3001.9,11.95481178]
[1764477567463,0.002,3002.0,3001.9,11.6223293]
[1764477567669,0.002,3002.0,3001.9,11.95481178]
[1764477569365,0.002,3002.0,3001.9,10.15834063]
[1764477570761,0.002,3002.0,3001.9,9.82585815]
[1764477570938,0.002,3002.0,3001.9,10.15834063]
[1764477577038,0.002,3002.0,3001.9,9.82585815]
[1764477577263,0.002,3002.0,3001.9,10.15834063]
[1764477585052,0.002,3002.0,3001.9,9.82585815]
[1764477585244,0.002,3002.0,3001.9,10.15834063]
[1764477590588,0.002,3002.0,3001.9,10.1576944]
[1764477597889,0.002,3002.0,3001.9,9.82521192]
[1764477598090,0.002,3002.0,3001.9,10.1576944]
[1764477600690,0.002,3002.0,3001.9,9.6830944]
[1764477601690,0.002,3002.0,3001.9,10.1787944]
[1764477604591,0.002,3002.0,3001.9,9.6830944]
[1764477605364,0.12,3002.0,3001.9,9.1952944]
[1764477605567,0.5672,3002.0,3001.9,9.1952944]
[1764477605783,0.5672,3002.0,3001.9,9.4052944]
[1764477606100,0.5672,3002.0,3001.9,8.37483365]
[1764477606395,0.5672,3002.0,3001.9,8.04235117]
[1764477609897,0.5672,3002.0,3001.9,7.63684717]
[1764477610618,0.5672,3002.0,3001.9,8.04235117]
[1764477621012,0.5672,3002.0,3001.9,8.04235117]
[1764477621226,0.002,3002.0,3001.9,8.04235117]
[1764477621424,0.002,3002.0,3001.9,9.69217568]
[1764477621582,0.12,3002.0,3001.9,9.69217568]
[1764477622309,0.002,3002.0,3001.9,9.8554932]
[1764477622496,0.002,3002.0,3001.9,10.18797568]
[1764477622903,0.002,3002.0,3001.9,9.69217568]
[1764477624514,0.1017,3002.0,3001.9,9.69217568]
[1764477625008,0.1017,3002.0,3001.9,9.3596932]
[1764477625525,0.5671,3002.0,3001.9,9.69217568]
[1764477635118,0.5671,3002.0,3001.9,11.49191133]
[1764477637016,0.1017,3002.0,3001.9,11.49191133]
[1764477637713,0.1017,3002.0,3001.9,9.69217568]
[1764477638088,0.1017,3002.0,3001.9,11.49191133]
[1764477638720,0.5671,3002.0,3001.9,11.49191133]
[1764477638922,0.5671,3002.0,3001.9,10.1745693]
[1764477639818,0.5671,3002.0,3001.9,9.84208682]
[1764477640596,0.5671,3002.0,3001.9,10.1745693]
[1764477642517,0.5671,3002.0,3001.9,9.84208682]
[1764477643796,0.002,3002.0,3001.9,9.84208682]
[1764477643996,0.002,3002.0,3001.9,12.01260133]
[1764477644511,0.002,3002.0,3001.9,11.53960133]
[1764477644725,0.1017,3002.0,3001.9,11.53960133]
[1764477650630,0.1017,3002.0,3001.9,11.54061862]
[1764477653212,0.5671,3002.0,3001.9,11.54061862]
[1764477655024,0.1017,3002.0,3001.9,11.54061862]
[1764477660133,0.002,3002.0,3001.9,11.54061862]
[1764477662040,0.002,3002.0,3001.9,11.20813614]
[1764477662542,0.002,3002.0,3001.9,11.54061862]
[1764477662736,0.002,3002.0,3001.9,11.20813614]
[1764477662942,0.002,3002.0,3001.9,11.54061862]
[1764477667512,0.1053,3002.0,3001.9,11.54061862]
[1764477669242,0.1053,3002.0,3001.9,11.20813614]
[1764477669542,0.1053,3002.0,3001.9,11.54061862]
[1764477672537,0.1053,3002.0,3001.9,11.20813614]
[1764477672742,0.5671,3002.0,3001.9,11.20813614]
[1764477675137,0.1053,3002.0,3001.9,11.20813614]
[1764477681856,0.002,3002.0,3001.9,11.20813614]
[1764477683957,0.5671,3002.0,3001.9,3.46463314]
[1764477684157,0.5671,3002.0,3001.9,3.33122355]
[1764477688631,0.1089,3002.0,3001.9,3.33122355]
[1764477689031,0.5671,3002.0,3001.9,3.33122355]
[1764477690855,0.5671,3002.0,3001.8,3.33133082]
[1764477691060,0.0046,3001.9,3001.8,3.73683482]
[1764477691248,0.1952,3001.9,3001.8,3.73683482]
[1764477691561,0.6821,3001.9,3001.8,3.73683482]
[1764477693134,0.6821,3001.9,3001.8,3.77014816]
[1764477698965,0.6821,3001.9,3001.8,4.45224816]
[1764477699854,0.6821,3001.9,3001.8,0.405504]
[1764477700438,0.6821,3001.9,3001.8,3.73683853]
[1764477702844,0.6821,3001.9,3001.7,3.33142059]
[1764477703174,0.561,3001.8,3001.7,3.33142059]
[1764477710176,0.561,3001.8,3001.6,0.211]
[1764477710368,0.0786,3001.7,3001.6,0.211]
[1764477710550,0.0786,3001.7,3001.6,0.001]
[1764477710752,0.5614,3001.7,3001.6,0.001]
[1764477712354,0.96972286,3001.7,3001.6,0.001]
[1764477713856,0.5614,3001.7,3001.6,0.001]
[1764477716060,0.5634,3001.7,3001.6,0.001]
[1764477721708,0.002,3001.7,3001.6,0.001]
[1764477722216,0.1041,3001.7,3001.6,0.001]
[1764477724001,0.5636,3001.7,3001.6,0.001]
[1764477725606,0.1041,3001.7,3001.6,0.001]
[1764477725980,0.5636,3001.7,3001.6,0.001]
[1764477734821,0.1041,3001.7,3001.6,0.001]
[1764477737427,0.5636,3001.7,3001.6,0.001]
[1764477738125,0.97214408,3001.7,3001.6,0.001]
[1764477739896,0.5636,3001.7,3001.6,0.001]
[1764477740691,0.1041,3001.7,3001.6,0.001]
[1764477740895,0.002,3001.7,3001.6,0.001]
[1764477741204,0.1077,3001.7,3001.6,0.001]
[1764477741991,0.5636,3001.7,3001.6,0.001]
[1764477742327,0.97214463,3001.7,3001.6,0.001]
[1764477743626,0.5636,3001.7,3001.6,0.001]
[1764477745745,3.89504551,3001.7,3001.6,0.001]
[1764477747916,4.10504551,3001.7,3001.6,0.001]
[1764477748300,4.96414094,3001.7,3001.6,0.001]
[1764477748505,5.30007527,3001.7,3001.6,0.001]
[1764477748711,6.18227647,3001.7,3001.6,0.001]
[1764477754352,5.84634214,3001.7,3001.6,0.001]
[1764477754657,6.28146675,3001.7,3001.6,0.001]
[1764477756612,10.19597075,3001.7,3001.6,0.001]
[1764477756847,4.64009811,3001.6,3001.5,0.001]
[1764477757015,10.87210933,3001.6,3001.5,0.001]
[1764477758338,14.20366583,3001.6,3001.5,0.001]
[1764477758540,14.33721127,3001.6,3001.5,0.001]
[1764477759046,10.82821127,3001.6,3001.5,0.001]
[1764477760211,21.07678027,3001.6,3001.5,0.001]
[1764477761331,27.21386122,3001.6,3001.3,0.001]
[1764477761526,4.49006778,3001.4,3001.3,0.001]
[1764477761845,10.85006778,3001.4,3001.3,0.001]
[1764477762042,11.45571322,3001.4,3001.3,0.001]
[1764477762747,14.78749172,3001.4,3001.3,0.001]
[1764477762946,17.06858574,3001.4,3001.3,0.001]
[1764477767361,15.4456334,3001.4,3001.3,0.001]
[1764477767525,15.78131385,3001.4,3001.3,0.001]
[1764477769441,16.50690796,3001.4,3001.3,0.001]
[1764477773143,16.71690796,3001.4,3001.3,0.001]
[1764477774660,17.19179864,3001.4,3001.3,0.001]
[1764477775781,16.98179864,3001.4,3001.3,0.001]
[1764477775935,17.19179864,3001.4,3001.3,0.001]
[1764477781185,16.98179864,3001.4,3001.3,0.001]
[1764477781336,17.09260836,3001.4,3001.3,0.001]
[1764477782063,17.19179864,3001.4,3001.3,0.001]
[1764477782469,17.17079864,3001.4,3001.3,0.001]
[1764477783372,16.96079864,3001.4,3001.3,0.001]
[1764477783538,17.17079864,3001.4,3001.3,0.001]
[1764477784266,17.17279864,3001.4,3001.3,0.001]
[1764477790145,17.19899864,3001.4,3001.3,0.001]
[1764477790572,17.17279864,3001.4,3001.3,0.001]
[1764477790874,17.19899864,3001.4,3001.3,0.001]
[1764477791072,17.17279864,3001.4,3001.3,0.001]
[1764477793668,17.07360836,3001.4,3001.3,0.001]
[1764477793853,17.17279864,3001.4,3001.3,0.001]
[1764477797480,13.9299828,3001.4,3001.3,0.001]
[1764477797979,13.83079252,3001.4,3001.3,0.001]
[1764477798185,13.9299828,3001.4,3001.3,0.001]
[1764477799479,17.4389828,3001.4,3001.3,0.001]
[1764477799781,13.9299828,3001.4,3001.3,0.001]
[1764477800786,6.47401207,3001.4,3001.3,1.1013]
[1764477800953,4.40291805,3001.4,3001.3,1.1013]
[1764477801282,4.7385985,3001.4,3001.3,1.1013]
[1764477802883,4.40291805,3001.4,3001.3,0.6442]
[1764477803187,4.40291805,3001.4,3001.3,1.1181]
[1764477803583,4.7385985,3001.4,3001.3,0.9355]
[1764477803783,4.40291805,3001.4,3001.3,0.9355]
[1764477803983,4.7385985,3001.4,3001.3,0.9355]
[1764477804688,4.40291805,3001.4,3001.3,0.9355]
[1764477806865,4.7385985,3001.4,3001.3,0.9355]
[1764477811593,4.40291805,3001.4,3001.3,0.9355]
[1764477811793,4.7385985,3001.4,3001.3,0.9355]
[1764477812290,4.40291805,3001.4,3001.3,0.9355]
[1764477812481,4.7385985,3001.4,3001.3,0.9355]
[1764477812678,0.13554544,3001.4,3001.3,0.9355]
[1764477812882,0.002,3001.4,3001.3,0.9355]
[1764477829219,0.002,3001.4,3001.3,0.001]
[1764477829220,0.0816,3001.4,3001.3,0.001]
[1764477829515,0.2916,3001.4,3001.3,0.001]
[1764477832415,4.34897261,3001.4,3001.3,0.001]
[1764477832616,5.17715741,3001.4,3001.3,0.001]
[1764477832925,5.51283786,3001.4,3001.3,0.001]
[1764477833419,6.11205344,3001.4,3001.3,0.001]
[1764477835224,6.21124372,3001.4,3001.3,0.001]
[1764477841730,5.66594372,3001.4,3001.3,0.001]
[1764477841898,5.71654372,3001.4,3001.3,0.001]